[Event "FIDE WSTC-50-65 2022"]
[Site "Acqui Terme"]
[Date "2022.06.28"]
[Round "8.7"]
[White "Emms, John M"]
[Black "Bagaturov, Giorgi"]
[Result "0-1"]
[ECO "B22"]
[WhiteElo "2478"]
[BlackElo "2413"]
[Annotator "TA"]
[PlyCount "110"]
[EventDate "2022.06.20"]
[EventType "team-tourn"]
[EventCountry "ITA"]
[SourceTitle "playchess.com"]
[Source "ChessBase"]
[SourceQuality "1"]
[TimeControl "40/5400+30:1800+30"]

{[%evp 22,110,0,0,5,1,0,0,0,7,11,8,14,18,33,25,32,5,0,0,10,10,12,9,9,8,22,8,19,14,20,0,0,3,8,0,10,0,0,0,0,0,-6,-15,-18,-15,8,0,0,0,0,-11,9,0,0,0,0,0,0,0,0,-4,-9,-18,-17,-17,-18,-18,-8,-51,-10,-286,-269,-229,-143,-146,-7,-7,-7,-7,-7,-35,-35,-122,-122,-499,-421,-1116,-1055,-747,-681]} 1. e4 {[%emt 0:01:00]} c5 {[%emt 0:01:00]} 2. c3 {[%emt 0:00:30]} Nf6 {[%emt 0:01:30]} 3. e5 {[%emt 0:00:00]} Nd5 {[%emt 0:00:30]} 4. Nf3 {[%emt 0:01:00]} Nc6 {[%emt 0:00:30]} 5. d4 {[%emt 0:00:30]} cxd4 {[%emt 0:00:30]} 6. cxd4 {[%emt 0:00:30]} d6 {[%emt 0:00:30]} 7. Bc4 {[%emt 0:00:30]} Nb6 {[%emt 0:07:30]} 8. Bb5 {[%emt 0:00:30]} dxe5 {[%emt 0:00:30]} 9. Nxe5 {[%emt 0:00:30]} Bd7 {[%emt 0:00:30]} 10. Nxd7 {[%emt 0:00:30]} Qxd7 {[%emt 0:00:30]} 11. Nc3 {[%emt 0:00:30]} e6 {[%emt 0:00:30]} 12. O-O {[%emt 0:00:30]} Rd8 $1 {[%emt 0:07:30][%mdl 4] now scores much better than the old 12...Be7. B22: Sicilian: 2 c3.} 13. Be3 {[%emt 0:03:30]} Be7 {[%emt 0:01:30]} 14. Qg4 {[%emt 0:01:30]} O-O {[%emt 0:02:30] The position is equal.} 15. Rad1 {[%emt 0:00:30]} f5 {[%emt 0:13:30]} 16. Qf3 {[%emt 0:01:30][%cal Od4d5]} Nd5 {[%emt 0:10:30]} (16... Bf6 {is interesting.} 17. d5 Nxd5 18. Nxd5 exd5 19. Bc4 Ne7) 17. Nxd5 {[%emt 0:24:30] [#]} Qxd5 $146 {[%emt 0:07:30]} (17... exd5 {feels hotter.} 18. Bxc6 bxc6 19. Bf4 Rfe8) ({Predecessor:} 17... exd5 18. Bf4 Nxd4 19. Rxd4 Qxb5 20. a4 Qxb2 21. Rxd5 Qa2 22. Rxd8 Bxd8 23. Qxb7 Qxa4 {1-0 (44) Gulbeyaz,E (2069)-Karpatchev,A (2420) Mersin 2021}) 18. Qxd5 {[%emt 0:03:30]} exd5 {[%emt 0:00:30]} 19. Bxc6 {[%emt 0:05:30]} bxc6 {[%emt 0:00:30]} 20. Rd3 {[%emt 0:00:30]} Rb8 {[%emt 0:07:30]} 21. b3 {[%emt 0:00:30]} Bd6 {[%emt 0:02:30]} 22. Rc1 {[%emt 0:06:30]} Rb6 {[%emt 0:00:30]} 23. Bd2 {[%emt 0:07:30]} Rc8 {[%emt 0:02:30]} 24. Kf1 {[%emt 0:05:30]} g6 {[%emt 0:03:30]} 25. h3 {[%emt 0:04:30]} h5 {[%emt 0:02:30]} 26. Re1 {[%emt 0:06:30] [#] Threatens to win with Re6.} Kf7 {[%emt 0:01:30] Inhibits Re6.} 27. Rde3 {[%emt 0:04:30]} Rb7 {[%emt 0:02:30]} 28. g3 {[%emt 0:05:24]} Be7 {[%emt 0:08:06]} 29. Ke2 {[%emt 0:03:33]} Bg5 {[%emt 0:02:31]} 30. Rc3 {[%emt 0:02:24]} Re7+ {[%emt 0:05:57]} 31. Kd3 {[%emt 0:03:45]} Re4 {[%emt 0:04:44]} 32. Rd1 {[%emt 0:03:03]} Bf6 {[%emt 0:01:31]} 33. Be3 {[%emt 0:00:07]} Ke7 {[%emt 0:01:16]} 34. f3 {[%emt 0:02:02]} Re6 {[%emt 0:00:05]} 35. Rc5 {[%emt 0:01:24]} Kd7 {[%emt 0:00:46]} 36. Ra5 {[%emt 0:00:35]} Rc7 {[%emt 0:00:07]} 37. h4 {[%emt 0:01:20]} Be7 {[%emt 0:01:52]} 38. Rc1 {[%emt 0:00:41]} Bd6 {[%emt 0:00:28]} 39. Bf4 {[%emt 0:01:14]} Bxf4 {[%emt 0:00:26]} 40. gxf4 $11 {[%emt 0:00:00][%mdl 4096] Endgame KRR-KRR} Kc8 $1 {[%emt 0:00:00]} 41. Rac5 {[%emt 0:10:28]} Kb7 {[%emt 0:03:11]} 42. R5c2 {[%emt 0:00:30]} Rce7 {[%emt 0:00:30]} 43. Rf2 $1 {[%emt 0:00:30]} Kb6 {[%emt 0:14:06]} 44. Kd2 $1 {[%emt 0:07:33]} a5 {[%emt 0:01:33]} 45. a4 {[%emt 0:07:32]} Re3 {[%emt 0:02:00]} 46. Rc3 {[%emt 0:01:55][%mdl 8192]} (46. Rg2 $11) 46... Rxc3 $19 {[%emt 0:01:41]} 47. Kxc3 {[%emt 0:00:02] KR-KR} Re3+ {[%emt 0:01:06]} 48. Kc2 {[%emt 0:00:33]} c5 {[%emt 0:02:47] Black is more active.} (48... Kb7 $17 {Hoping for ...Kb6.} 49. Rf1 Kc7) 49. Rg2 $11 {[%emt 0:00:54]} cxd4 {[%emt 0:00:28]} 50. Rxg6+ {[%emt 0:00:07]} Kc5 {[%emt 0:00:05] [#] aiming for ...Rc3+.} 51. Rf6 {[%emt 0:00:46]} Rc3+ {[%emt 0:00:55]} 52. Kd2 {[%emt 0:03:29]} (52. Kb2 $1 $15) 52... Rxb3 $17 {[%emt 0:00:16]} 53. Rf8 $2 {[%emt 0:01:37][%mdl 8192]} (53. Rxf5 $17 {nothing else works.} Rxf3 54. Rxh5) 53... Rxf3 $19 {[%emt 0:01:16] Black is clearly winning.} 54. Rc8+ {[%emt 0:00:55]} (54. Rxf5 $142 Kc4 55. Rxh5) 54... Kb4 {[%emt 0:00:09]} 55. Rb8+ {[%emt 0:01:16]} Kxa4 {[%emt 0:00:25] Weighted Error Value: White=0.47/Black=0.12 (very precise)} 0-1

[Event "FIDE WSTC-50-65 2022"]
[Site "Acqui Terme"]
[Date "2022.06.28"]
[Round "8.8"]
[White "Gaprindashvili, Nona"]
[Black "Arkell, Keith C"]
[Result "0-1"]
[ECO "E20"]
[WhiteElo "2270"]
[BlackElo "2367"]
[Annotator "TA"]
[PlyCount "78"]
[EventDate "2022.06.20"]
[EventType "team-tourn"]
[EventCountry "ITA"]
[SourceTitle "playchess.com"]
[Source "ChessBase"]
[SourceQuality "1"]
[TimeControl "40/5400+30:1800+30"]

{[%evp 30,78,25,15,30,34,64,69,88,60,60,20,216,2,29,22,112,0,0,0,0,0,0,-50,-57,-58,-55,-127,-127,-127,-127,-127,-127,-140,-139,-412,-345,-423,-423,-423,-419,-423,-423,-423,-358,-686,-347,-753,-651,-333,-333]} 1. d4 {[%emt 0:01:00]} e6 {[%emt 0:01:00]} 2. Nf3 {[%emt 0:00:30]} Nf6 {[%emt 0:00:00]} 3. c4 {[%emt 0:00:30]} Bb4+ {[%emt 0:00:00]} 4. Nc3 {[%emt 0:00:00]} c5 {[%emt 0:00:30]} 5. g3 {[%emt 0:00:00]} Ne4 {[%emt 0:03:30]} 6. Qd3 {[%emt 0:00:30]} cxd4 {[%emt 0:08:30]} 7. Nxd4 {[%emt 0:00:30]} Qa5 {[%emt 0:09:30]} 8. Nb3 {[%emt 0:00:30]} Nxc3 {[%emt 0:13:30]} 9. Bd2 {[%emt 0:00:30]} Ne4 {[%emt 0:02:30]} 10. Qxe4 {[%emt 0:00:30]} Bxd2+ {[%emt 0:00:30]} 11. Nxd2 {[%emt 0:00:00]} Nc6 {[%emt 0:02:30]} 12. Bg2 {[%emt 0:00:00]} O-O {[%emt 0:01:30]} 13. Qe3 {[%emt 0:00:30]} d5 {[%emt 0:01:30]} 14. O-O {[%emt 0:00:00]} d4 {[%emt 0:02:30]} 15. Qd3 {[%emt 0:01:00]} e5 {[%emt 0:02:30]} 16. a3 {[%emt 0:00:30]} Qc7 {[%emt 0:01:30] E20: Nimzo-Indian: 4 g3 and 4 f3.} 17. f4 {[%emt 0:04:30]} exf4 {[%emt 0:02:30]} 18. Rxf4 {[%emt 0:00:30] [#]} a5 $146 {[%emt 0:02:30] White is slightly better.} ({Predecessor:} 18... Be6 19. Nf3 Rad8 20. Ng5 g6 21. Nxe6 fxe6 22. Rxf8+ Kxf8 23. Rf1+ Kg7 24. Qf3 Qe7 {½-½ (32) Barsov,A (2525)-Arkell,K (2521) Hastings 2003}) 19. Raf1 {[%emt 0:13:30]} Be6 {[%emt 0:05:30]} 20. Bd5 {[%emt 0:09:30]} Qd7 $2 {[%emt 0:06:30] [#]} (20... h6 $11) 21. Ne4 $2 {[%emt 0:23:30]} ({Only move:} 21. Rh4 $1 $18 {[%csl Gh4][%cal Rd3h7]} f5 22. Rxf5) 21... Ne5 {[%emt 0:17:14]} 22. Qxd4 {[%emt 0:01:30]} Ng6 {[%emt 0:00:09]} (22... Nxc4 $1 $11 {remains equal.} 23. Nf6+ gxf6 24. Bxc4 Qxd4+ 25. Rxd4 Bxc4 26. Rg4+ (26. Rxc4 Rfe8 $14) 26... Kh8 27. Rxc4 Rae8) 23. Nc5 {[%emt 0:02:30]} (23. R4f3 $16) 23... Nxf4 $11 {[%emt 0:01:33]} 24. Rxf4 {[%emt 0:08:30]} Qe7 {[%emt 0:04:03]} 25. Re4 {[%emt 0:03:30][%cal Rc5e6]} Qg5 {[%emt 0:01:21]} 26. Nxe6 {[%emt 0:05:30]} ({White should try} 26. Nxb7 $11 Rae8 27. Nxa5) 26... fxe6 $40 {[%emt 0:00:10][%mdl 128] Black has some attack.} 27. Bxe6+ {[%emt 0:00:00]} Kh8 {[%emt 0:00:05] [#] ( -> ...Qc1+)} 28. Rf4 {[%emt 0:02:00]} ({Better is} 28. Kg2 $1 $15) 28... Rxf4 $17 {[%emt 0:00:39]} 29. Qxf4 {[%emt 0:00:00][%mdl 4096] Endgame KQR-KQB} Qc5+ {[%emt 0:00:37]} 30. Qf2 {[%emt 0:04:00]} Qe5 {[%emt 0:00:05][%csl LRb2,LRe6]} 31. Bd5 {[%emt 0:00:30]} Qxb2 {[%emt 0:00:28]} 32. a4 {[%emt 0:00:30][%mdl 8192]} (32. Qe3 $17) 32... Re8 {[%emt 0:01:05]} 33. e4 {[%emt 0:00:30]} Qa1+ {[%emt 0:03:39]} 34. Kg2 {[%emt 0:00:30]} Qxa4 {[%emt 0:00:23]} 35. e5 {[%emt 0:00:00]} Qb4 {[%emt 0:00:16] Hoping for ...Rf8.} 36. e6 {[%emt 0:01:00]} b6 {[%emt 0:03:39] Against c5} 37. Qf7 $2 {[%emt 0:01:32]} (37. h4) 37... Qe7 {[%emt 0:00:35] Threatens to win with ...Qxf7.} 38. Bc6 $2 {[%emt 0:00:12]} (38. h4) 38... Qxf7 $19 {[%emt 0:00:08]} 39. exf7 {[%emt 0:00:14][%cal Rf7e8]} Rf8 {[%emt 0:00:04] Weighted Error Value: White=0.87/Black=0.59} 0-1

[Event "FIDE WSTC-50-65 2022"]
[Site "Acqui Terme"]
[Date "2022.06.28"]
[Round "8.13"]
[White "Meister, Jakob"]
[Black "Knaak, Rainer"]
[Result "1-0"]
[ECO "C01"]
[WhiteElo "2418"]
[BlackElo "2479"]
[Annotator "TA"]
[PlyCount "151"]
[EventDate "2022.06.20"]
[EventType "team-tourn"]
[EventCountry "ITA"]
[SourceTitle "playchess.com"]
[Source "ChessBase"]
[SourceQuality "1"]
[TimeControl "40/5400+30:1800+30"]

{[%evp 12,151,19,0,7,1,3,-12,18,9,56,27,11,0,0,-22,78,83,80,75,80,91,96,77,67,58,130,97,146,145,152,150,150,145,145,153,191,137,139,139,139,131,137,137,145,143,181,179,178,179,177,176,177,174,177,174,174,172,189,187,191,164,160,158,171,171,173,177,166,161,164,154,158,0,162,160,175,172,214,207,223,223,220,223,223,209,209,209,211,210,201,203,209,209,224,226,214,217,258,250,373,378,366,361,389,396,401,400,371,382,420,420,295,365,364,309,866,854,962,957,973,943,987,972,1020,1007,1276,1267,1188,1158,1727,1658,2358,2347,4337,4133,3157,1452,29979,29982,29980,5052]} 1. e4 {[%emt 0:01:00]} e6 {[%emt 0:01:00]} 2. d4 {[%emt 0:03:30]} d5 {[%emt 0:00:30]} 3. exd5 {[%emt 0:00:30]} exd5 {[%emt 0:00:00]} 4. Bd3 {[%emt 0:00:30]} Nc6 {[%emt 0:00:00]} 5. c3 {[%emt 0:00:00]} Bd6 {[%emt 0:01:30]} 6. Nf3 {[%emt 0:01:00]} Nge7 {[%emt 0:00:30]} 7. Qc2 {[%emt 0:00:30]} Bg4 {[%emt 0:00:30] C01: French: Exchange Variation.} 8. Nbd2 {[%emt 0:04:30]} Qd7 {[%emt 0:03:30]} 9. h3 {[%emt 0:00:30]} Bh5 {[%emt 0:07:30] The position is equal.} 10. O-O {[%emt 0:01:30]} f6 {[%emt 0:05:30]} (10... Bg6 $11 {might be stronger.}) 11. Re1 {[%emt 0:05:30]} (11. Bxh7 $2 g6 12. b4 Rxh7 $19) 11... O-O-O $1 {[%emt 0:00:30] [#]} 12. Nh2 $146 {[%emt 0:01:30]} ({Wrong is} 12. Bxh7 $2 g6 13. Kf1 Rxh7 $19) ({Predecessor:} 12. b4 Rde8 13. a4 g5 14. a5 Bxf3 15. Nxf3 h5 16. b5 Nd8 17. b6 a6 18. bxc7 {0-1 (39) Postnikov,D (2360)-Zierk,S (2488) Chess.com INT 2022}) 12... g5 {[%emt 0:14:30]} 13. Ndf1 {[%emt 0:04:30]} g4 {[%emt 0:02:30]} (13... Rdf8 $11 {keeps the balance.}) 14. hxg4 $16 {[%emt 0:02:30]} Bxg4 {[%emt 0:01:30]} 15. Nxg4 {[%emt 0:00:30]} Qxg4 {[%emt 0:00:30]} 16. Qe2 {[%emt 0:00:30]} Qg7 {[%emt 0:01:30]} 17. Qf3 {[%emt 0:00:30]} Kb8 {[%emt 0:15:30][%cal Of6f5]} 18. Ng3 {[%emt 0:24:30] Inhibits f5.} (18. Ne3 {is more complex.} h5 19. Nf5 Nxf5 20. Bxf5 Rdf8 21. Re6) 18... Bxg3 {[%emt 0:07:30]} ({Black should try} 18... h5 $14) 19. Qxg3 {[%emt 0:01:30]} Qxg3 {[%emt 0:00:30]} (19... Ng6 $142) 20. fxg3 {[%emt 0:00:30]} Rdf8 {[%emt 0:04:30]} 21. Bh6 {[%emt 0:01:30]} Rf7 {[%emt 0:01:30]} 22. Re3 {[%emt 0:01:30] White is more active.} Rg8 {[%emt 0:02:30]} 23. Rf1 {[%emt 0:01:30]} f5 {[%emt 0:07:30]} 24. Ref3 {[%emt 0:05:30]} (24. g4 $18) 24... Rg6 {[%emt 0:04:11]} 25. Bd2 {[%emt 0:01:30][%cal Rd3f5] A strong pair of Bishops.} Nd8 {[%emt 0:05:02]} 26. Bxf5 {[%emt 0:05:30]} Nxf5 {[%emt 0:03:14]} 27. Rxf5 {[%emt 0:00:30]} Rxf5 {[%emt 0:00:07]} 28. Rxf5 {[%emt 0:00:00][%mdl 4096] Endgame KRB-KRN} Kc8 {[%emt 0:00:33]} 29. Rxd5 {[%emt 0:01:00]} Rxg3 {[%emt 0:00:12]} 30. Kf2 {[%emt 0:05:30]} Rg7 {[%emt 0:00:27]} 31. Rf5 {[%emt 0:00:30]} Kd7 {[%emt 0:01:02]} 32. Kf3 {[%emt 0:01:30]} Nf7 {[%emt 0:00:38]} 33. Bf4 {[%emt 0:04:30]} c6 {[%emt 0:02:48]} 34. g4 {[%emt 0:01:30][%cal Bg2g4,Bg4g5][%mdl 32]} Ke6 {[%emt 0:00:40]} 35. Rh5 {[%emt 0:00:31]} Nh8 {[%emt 0:01:30]} 36. d5+ {[%emt 0:05:48]} cxd5 {[%emt 0:04:24]} 37. Re5+ {[%emt 0:00:37]} Kf6 {[%emt 0:00:40]} 38. g5+ {[%emt 0:06:18]} Kf7 {[%emt 0:00:50]} 39. Rxd5 {[%emt 0:00:06]} Ke6 {[%emt 0:00:05] Inhibits Rd7.} 40. Re5+ {[%emt 0:00:00]} Kd7 {[%emt 0:00:00]} 41. Rc5 {[%emt 0:05:10]} Ke6 {[%emt 0:04:37]} 42. Re5+ {[%emt 0:03:30]} Kd7 {[%emt 0:00:30]} 43. Rb5 {[%emt 0:01:30]} b6 {[%emt 0:04:30]} 44. Rd5+ {[%emt 0:04:30]} Ke6 {[%emt 0:00:30]} 45. Rd6+ {[%emt 0:00:30]} Ke7 {[%emt 0:00:30] [#]} 46. Rc6 $1 {[%emt 0:00:30] Strongly threatening Rc7+.} Kd8 {[%emt 0:00:30] Inhibits Rc7.} 47. Be5 {[%emt 0:00:30]} Rf7+ {[%emt 0:00:30]} 48. Rf6 {[%emt 0:00:30]} Ng6 {[%emt 0:00:00]} 49. Bd4 {[%emt 0:00:30]} Rd7 {[%emt 0:01:00]} 50. Kg4 {[%emt 0:00:30]} Ke8 {[%emt 0:03:30]} 51. a4 {[%emt 0:02:30][%cal Ba2a4,Ba4a5][%mdl 32]} Ne7 {[%emt 0:00:30]} 52. Re6 {[%emt 0:01:30] [#] Threatens to win with Bf6.} Kf7 {[%emt 0:02:30]} 53. Rh6 {[%emt 0:00:30]} Kg8 {[%emt 0:00:00]} 54. a5 {[%emt 0:02:30]} Ng6 {[%emt 0:01:00]} 55. a6 {[%emt 0:01:30]} ({Don't do} 55. axb6 $6 axb6 56. Rh2 (56. Bxb6 Rb7 $16) 56... b5 $18) 55... Rf7 {[%emt 0:05:06]} (55... b5 $142 56. Rh1 b4) 56. Bf6 $18 {[%emt 0:01:30]} Rd7 {[%emt 0:03:09]} 57. Rh1 {[%emt 0:01:04] Prevents Rd1.} Rd2 {[%emt 0:00:59]} 58. b4 {[%emt 0:00:25]} Rd7 {[%emt 0:03:56]} 59. Re1 {[%emt 0:02:49]} Kf7 {[%emt 0:00:07]} 60. Re4 {[%emt 0:01:56]} Rd1 {[%emt 0:03:57]} 61. Rc4 {[%emt 0:02:57]} Rg1+ {[%emt 0:00:21]} 62. Kf5 {[%emt 0:04:57] Hoping for Rc7+.} Rf1+ {[%emt 0:00:09]} 63. Ke4 {[%emt 0:00:36]} h5 $2 {[%emt 0:03:28]} (63... Rf4+ 64. Kd3 Rxc4 65. Kxc4 h5) 64. Rc7+ {[%emt 0:00:14]} Ke6 {[%emt 0:00:06]} 65. Rxa7 {[%emt 0:00:09]} Re1+ {[%emt 0:00:24]} 66. Kd3 {[%emt 0:00:42]} Ra1 {[%emt 0:00:13]} 67. b5 {[%emt 0:00:31]} h4 {[%emt 0:00:03]} 68. Rh7 {[%emt 0:00:14]} h3 {[%emt 0:00:07]} 69. Bd4 {[%emt 0:01:03]} Kf5 {[%emt 0:00:22]} 70. Bxb6 {[%emt 0:02:16]} Ne5+ {[%emt 0:00:22]} 71. Kc2 {[%emt 0:01:05]} h2 {[%emt 0:02:34]} 72. a7 {[%emt 0:04:33]} Nf3 {[%emt 0:00:13]} 73. Kb2 {[%emt 0:00:23]} Ra4 {[%emt 0:00:08]} 74. Bf2 {[%emt 0:00:34]} Kxg5 {[%emt 0:00:35]} 75. b6 {[%emt 0:00:34]} Kg6 {[%emt 0:00:04]} 76. Rh3 {[%emt 0:00:35] Weighted Error Value: White=0.07 (flawless) /Black=0.15 (very precise)} 1-0

[Event "FIDE WSTC-50-65 2022"]
[Site "Acqui Terme"]
[Date "2022.06.28"]
[Round "8.14"]
[White "Chevelevitch, Evgueni"]
[Black "Klundt, Klaus"]
[Result "1/2-1/2"]
[ECO "B48"]
[WhiteElo "2369"]
[BlackElo "2295"]
[Annotator "TA"]
[PlyCount "42"]
[EventDate "2022.06.20"]
[EventType "team-tourn"]
[EventCountry "ITA"]
[SourceTitle "playchess.com"]
[Source "ChessBase"]
[SourceQuality "1"]
[TimeControl "40/5400+30:1800+30"]

{[%evp 11,27,29,48,27,27,14,20,32,21,22,22,22,30,33,41,26,0,21]} 1. e4 {[%emt 0:01:00]} c5 {[%emt 0:01:00]} 2. Nf3 {[%emt 0:00:00]} e6 {[%emt 0:00:00]} 3. d4 {[%emt 0:00:00]} cxd4 {[%emt 0:00:00]} 4. Nxd4 {[%emt 0:00:30]} Nc6 {[%emt 0:00:30][%cal Bb8c6,Bc6e5,Be5g4][%mdl 32]} 5. Nc3 {[%emt 0:00:30]} Qc7 {[%emt 0:00:30]} 6. Be3 {[%emt 0:01:30]} a6 {[%emt 0:00:00]} 7. Qf3 {[%emt 0:00:30] B48: Sicilian: Taimanov: 5 Nc3 Qc7 6 Be3 a6 without Be2.} Nf6 {[%emt 0:01:00][%cal Of8a3]} 8. O-O-O {[%emt 0:00:30]} Ne5 {[%emt 0:01:30]} 9. Qg3 {[%emt 0:01:30]} b5 {[%emt 0:00:30][%cal Bb7b5,Bb5b4][%mdl 32]} 10. f4 {[%emt 0:01:30]} Neg4 {[%emt 0:00:00]} 11. Bg1 {[%emt 0:01:30] Hoping for e5.} h5 $1 {[%emt 0:06:00] [#] aiming for ...b4. 11...h5 scores better than 11...b4.} 12. e5 {[%emt 0:08:30] Threatens to win with h3.} b4 $1 {[%emt 0:00:30]} 13. Na4 {[%emt 0:03:30]} ({Much worse is} 13. exf6 bxc3 14. fxg7 Bxg7 15. Qxc3 Qxc3 16. bxc3 Bb7 $11) (13. Nb1 $5 {[%cal Rh2h3]} Ne4 14. Qe1 $14) 13... Nd5 {[%emt 0:00:30]} 14. h3 {[%emt 0:06:30] [#]  Weighted Error Value: White=0.07 (flawless) /Black=0.02 (flawless)} {Predecessor:} Nh6 $146 15. f5 Bb7 16. Bd3 Be7 17. Kb1 h4 18. Qe1 Nf4 19. Bh2 Nxd3 20. Rxd3 Qa5 21. fxe6 fxe6 {1-0 (44) Nakamura,H (2736)-Pichot,A (2630) chess24.com INT 2021} 1/2-1/2

[Event "FIDE WSTC-50-65 2022"]
[Site "Acqui Terme"]
[Date "2022.06.28"]
[Round "8.15"]
[White "Salov, Sergej"]
[Black "Kiefer, Gerhard"]
[Result "1/2-1/2"]
[ECO "B47"]
[WhiteElo "2169"]
[BlackElo "2224"]
[Annotator "RC"]
[PlyCount "21"]
[EventDate "2022.06.20"]
[EventType "team-tourn"]
[EventCountry "ITA"]
[SourceTitle "playchess.com"]
[Source "ChessBase"]
[SourceQuality "1"]
[TimeControl "40/5400+30:1800+30"]

1. e4 {[%emt 0:01:00]} c5 {[%emt 0:01:00]} 2. Nf3 {[%emt 0:00:00]} e6 {[%emt 0:00:00]} 3. Nc3 {[%emt 0:00:00]} a6 {[%emt 0:00:00]} 4. d4 {[%emt 0:00:30]} cxd4 {[%emt 0:00:30]} 5. Nxd4 {[%emt 0:00:30]} Nc6 {[%emt 0:00:30]} 6. g3 {[%emt 0:00:00]} Qc7 {[%emt 0:00:30]} 7. Bg2 {[%emt 0:01:00]} Nf6 {[%emt 0:04:30]} 8. O-O {[%emt 0:00:30]} Nxd4 {[%emt 0:00:30]} 9. Qxd4 {[%emt 0:00:30]} Bc5 {[%emt 0:00:00]} 10. Bf4 {[%emt 0:00:30]} d6 {[%emt 0:00:00]} 11. Qd3 {[%emt 0:03:30]} 1/2-1/2

[Event "FIDE WSTC-50-65 2022"]
[Site "Acqui Terme"]
[Date "2022.06.28"]
[Round "8.16"]
[White "Kierzek, Matthias"]
[Black "Gruzmann, Boris"]
[Result "1/2-1/2"]
[ECO "A53"]
[WhiteElo "2224"]
[BlackElo "2189"]
[Annotator "RC"]
[PlyCount "61"]
[EventDate "2022.06.20"]
[EventType "team-tourn"]
[EventCountry "ITA"]
[SourceTitle "playchess.com"]
[Source "ChessBase"]
[SourceQuality "1"]
[TimeControl "40/5400+30:1800+30"]

1. d4 {[%emt 0:01:00]} Nf6 {[%emt 0:01:00]} 2. c4 {[%emt 0:00:00]} d6 {[%emt 0:00:00]} 3. Nc3 {[%emt 0:00:00]} Bf5 {[%emt 0:00:00]} 4. g3 {[%emt 0:00:30]} c6 {[%emt 0:10:30]} 5. Bg2 {[%emt 0:02:30]} e5 {[%emt 0:00:30]} 6. e4 {[%emt 0:00:30]} Bg4 {[%emt 0:03:30]} 7. f3 {[%emt 0:01:30]} exd4 {[%emt 0:00:30]} 8. Qxd4 {[%emt 0:00:30]} Be6 {[%emt 0:00:30]} 9. b3 {[%emt 0:08:30]} Be7 {[%emt 0:00:30]} 10. Nge2 {[%emt 0:00:30]} O-O {[%emt 0:00:30]} 11. Bb2 {[%emt 0:09:30]} Nbd7 {[%emt 0:01:30]} 12. Nf4 {[%emt 0:04:30]} Qa5 {[%emt 0:03:30]} 13. Nxe6 {[%emt 0:08:30]} fxe6 {[%emt 0:00:30]} 14. Bh3 {[%emt 0:01:30]} e5 {[%emt 0:07:30]} 15. Qd2 {[%emt 0:01:30]} Rad8 {[%emt 0:03:30]} 16. O-O {[%emt 0:03:30]} a6 {[%emt 0:00:30]} 17. Rfd1 {[%emt 0:08:30]} Kh8 {[%emt 0:02:30]} 18. Kh1 {[%emt 0:06:30]} b5 {[%emt 0:02:30]} 19. Bf1 {[%emt 0:01:30]} Nb6 {[%emt 0:03:30]} 20. a3 {[%emt 0:01:30]} Na8 {[%emt 0:02:30]} 21. Kg2 {[%emt 0:16:30]} Nc7 {[%emt 0:02:30]} 22. Qe3 {[%emt 0:00:30]} Ne6 {[%emt 0:00:30]} 23. b4 {[%emt 0:03:38]} Qc7 {[%emt 0:00:00]} 24. cxb5 {[%emt 0:00:40]} axb5 {[%emt 0:01:00]} 25. Rac1 {[%emt 0:00:20]} Qb7 {[%emt 0:03:30]} 26. Nb1 {[%emt 0:01:38]} Ne8 {[%emt 0:05:30]} 27. Nd2 {[%emt 0:03:00]} Bg5 {[%emt 0:08:30]} 28. Qd3 {[%emt 0:00:40]} Rc8 {[%emt 0:04:30]} 29. Rc2 {[%emt 0:00:24]} Rc7 {[%emt 0:10:30]} 30. Be2 {[%emt 0:00:26]} Qb6 {[%emt 0:03:58]} 31. Nf1 {[%emt 0:00:30]} 1/2-1/2